[Event "*** Titled Tuesday Blitz"]
[Site "Chess.com"]
[Date "2020.05.05"]
[Round "10"]
[White "shnitez"]
[Black "Danfii"]
[Result "1/2-1/2"]
[WhiteElo "2482"]
[BlackElo "2348"]
[TimeControl "180+1"]
[EndTime "11:59:50 PDT"]
[Termination "Game drawn by agreement"]

1. e4 {[%clk 0:02:54.3]} 1... e5 {[%clk 0:02:59.9]} 2. Nf3 {[%clk 0:02:53]} 2...
Nc6 {[%clk 0:02:59.7]} 3. Bb5 {[%clk 0:02:51.9]} 3... Nf6 {[%clk 0:02:59.5]} 4.
d3 {[%clk 0:02:49.3]} 4... Bc5 {[%clk 0:02:59.2]} 5. Bxc6 {[%clk 0:02:47.6]}
5... dxc6 {[%clk 0:02:59.1]} 6. Nbd2 {[%clk 0:02:46.2]} 6... Be6 {[%clk
0:02:58.8]} 7. Qe2 {[%clk 0:02:42.4]} 7... Nd7 {[%clk 0:02:38.6]} 8. Nb3 {[%clk
0:02:37.6]} 8... Bb6 {[%clk 0:02:38.2]} 9. Ng5 {[%clk 0:02:34.3]} 9... Bxb3
{[%clk 0:02:32.1]} 10. axb3 {[%clk 0:02:35.2]} 10... h6 {[%clk 0:02:27.5]} 11.
Qh5 {[%clk 0:02:30.8]} 11... Qe7 {[%clk 0:02:21.4]} 12. O-O {[%clk 0:02:09.3]}
12... g6 {[%clk 0:02:04.2]} 13. Qh4 {[%clk 0:01:36.6]} 13... O-O-O {[%clk
0:02:02.6]} 14. Nf3 {[%clk 0:01:36.1]} 14... g5 {[%clk 0:02:01.7]} 15. Qg4
{[%clk 0:01:27.2]} 15... Kb8 {[%clk 0:01:53]} 16. Be3 {[%clk 0:01:20.2]} 16...
f6 {[%clk 0:01:43.9]} 17. Ra4 {[%clk 0:01:03]} 17... h5 {[%clk 0:01:38.3]} 18.
Qf5 {[%clk 0:01:02.8]} 18... Rdg8 {[%clk 0:01:29.4]} 19. Rfa1 {[%clk 0:00:59]}
19... a6 {[%clk 0:01:27.7]} 20. b4 {[%clk 0:00:53.6]} 20... h4 {[%clk
0:00:59.6]} 21. h3 {[%clk 0:00:45.2]} 21... Nf8 {[%clk 0:00:44.5]} 22. Nh2
{[%clk 0:00:34.8]} 22... Ne6 {[%clk 0:00:41.1]} 23. Ng4 {[%clk 0:00:31.7]} 23...
Rf8 {[%clk 0:00:41.1]} 24. c4 {[%clk 0:00:18.4]} 24... Bd4 {[%clk 0:00:38.9]}
25. b5 {[%clk 0:00:16.5]} 25... cxb5 {[%clk 0:00:34.3]} 26. cxb5 {[%clk
0:00:16.3]} 26... Bxb2 {[%clk 0:00:28.8]} 27. R1a2 {[%clk 0:00:16.2]} 27... Bd4
{[%clk 0:00:23.5]} 28. bxa6 {[%clk 0:00:16.3]} 28... b6 {[%clk 0:00:23.7]} 29.
a7+ {[%clk 0:00:16.6]} 29... Ka8 {[%clk 0:00:24]} 30. Rc4 {[%clk 0:00:16.2]}
30... Ng7 {[%clk 0:00:14.8]} 31. Qf3 {[%clk 0:00:14.3]} 31... Ne6 {[%clk
0:00:13.9]} 32. Rac2 {[%clk 0:00:13.1]} 32... c5 {[%clk 0:00:13.3]} 33. Ra2
{[%clk 0:00:09.4]} 33... Rh7 {[%clk 0:00:09.4]} 34. Rca4 {[%clk 0:00:08.7]}
34... Qd6 {[%clk 0:00:07.6]} 35. Ra6 {[%clk 0:00:05.5]} 35... Rhf7 {[%clk
0:00:07.5]} 36. Nh6 {[%clk 0:00:04.9]} 36... Rb7 {[%clk 0:00:05.7]} 37. Nf5
{[%clk 0:00:04.9]} 37... Qd7 {[%clk 0:00:06.3]} 38. Qg4 {[%clk 0:00:04.2]} 38...
Nc7 {[%clk 0:00:05.4]} 39. Bxd4 {[%clk 0:00:03.5]} 39... cxd4 {[%clk 0:00:05.1]}
40. R6a3 {[%clk 0:00:02.2]} 40... Nb5 {[%clk 0:00:05.6]} 41. Rb3 {[%clk
0:00:02.3]} 41... Nc3 {[%clk 0:00:06.5]} 42. Rab2 {[%clk 0:00:03]} 42... b5
{[%clk 0:00:06.6]} 43. Rb4 {[%clk 0:00:02.8]} 43... Kxa7 {[%clk 0:00:05.5]} 44.
Kh2 {[%clk 0:00:03.1]} 44... Kb8 {[%clk 0:00:05.3]} 45. Qf3 {[%clk 0:00:03.1]}
45... Qc7 {[%clk 0:00:04.9]} 1/2-1/2

[Event "*** Titled Tuesday Blitz"]
[Site "Chess.com"]
[Date "2020.05.05"]
[Round "10"]
[White "BocharovD"]
[Black "Grischuk"]
[Result "0-1"]
[WhiteElo "2894"]
[BlackElo "3115"]
[TimeControl "180+1"]
[EndTime "11:59:51 PDT"]
[Termination "Grischuk won by resignation"]

1. c4 {[%clk 0:03:00.9]} 1... e5 {[%clk 0:02:57.1]} 2. g3 {[%clk 0:03:01.2]}
2... c6 {[%clk 0:02:55.1]} 3. d4 {[%clk 0:03:00]} 3... e4 {[%clk 0:02:55.7]} 4.
Nc3 {[%clk 0:02:56.3]} 4... Bb4 {[%clk 0:02:54.1]} 5. Qb3 {[%clk 0:02:54]} 5...
Bxc3+ {[%clk 0:02:54.3]} 6. Qxc3 {[%clk 0:02:53.7]} 6... d5 {[%clk 0:02:52.9]}
7. b3 {[%clk 0:02:40.2]} 7... a5 {[%clk 0:02:36.9]} 8. Bg2 {[%clk 0:02:23.1]}
8... Nf6 {[%clk 0:02:27.7]} 9. Ba3 {[%clk 0:02:16.9]} 9... Na6 {[%clk
0:02:10.3]} 10. Nh3 {[%clk 0:02:12.1]} 10... b5 {[%clk 0:02:04.2]} 11. cxb5
{[%clk 0:02:05.5]} 11... cxb5 {[%clk 0:02:05.1]} 12. Bc1 {[%clk 0:01:45.4]}
12... h6 {[%clk 0:01:48.6]} 13. O-O {[%clk 0:01:40.4]} 13... O-O {[%clk
0:01:48.3]} 14. Bf4 {[%clk 0:01:40.2]} 14... Bf5 {[%clk 0:01:37]} 15. f3 {[%clk
0:01:28.7]} 15... Rc8 {[%clk 0:01:35.6]} 16. Qd2 {[%clk 0:01:24.1]} 16... Re8
{[%clk 0:01:29.6]} 17. Rfc1 {[%clk 0:01:17]} 17... Qb6 {[%clk 0:01:25.7]} 18.
Nf2 {[%clk 0:01:12.3]} 18... Nb4 {[%clk 0:01:24.4]} 19. Bh3 {[%clk 0:00:40.7]}
19... Bxh3 {[%clk 0:00:34.9]} 20. Nxh3 {[%clk 0:00:41.6]} 20... Qe6 {[%clk
0:00:35.5]} 21. Kg2 {[%clk 0:00:40.9]} 21... e3 {[%clk 0:00:34.6]} 22. Qd1
{[%clk 0:00:36.3]} 22... Nc6 {[%clk 0:00:34.5]} 23. Qd3 {[%clk 0:00:32.7]} 23...
b4 {[%clk 0:00:30.4]} 24. g4 {[%clk 0:00:29.9]} 24... Ne7 {[%clk 0:00:21.9]} 25.
Bg3 {[%clk 0:00:27.5]} 25... g5 {[%clk 0:00:19.9]} 26. Rc5 {[%clk 0:00:22.6]}
26... Rxc5 {[%clk 0:00:17.5]} 27. dxc5 {[%clk 0:00:22.6]} 27... Nc6 {[%clk
0:00:18.2]} 28. Rd1 {[%clk 0:00:20.4]} 28... d4 {[%clk 0:00:18.5]} 29. Bd6
{[%clk 0:00:20.4]} 29... Nd5 {[%clk 0:00:17.4]} 30. Kg3 {[%clk 0:00:15.3]} 30...
Nc3 {[%clk 0:00:16.1]} 31. Rf1 {[%clk 0:00:15.5]} 31... Nxa2 {[%clk 0:00:14.4]}
32. f4 {[%clk 0:00:15.8]} 32... Nc3 {[%clk 0:00:13.6]} 33. fxg5 {[%clk
0:00:16.3]} 33... Ne4+ {[%clk 0:00:13.8]} 34. Kg2 {[%clk 0:00:16.7]} 34... hxg5
{[%clk 0:00:13.1]} 35. Rf5 {[%clk 0:00:17.3]} 35... f6 {[%clk 0:00:12.4]} 36.
Qb5 {[%clk 0:00:15.7]} 36... Rc8 {[%clk 0:00:11.9]} 37. Qb7 {[%clk 0:00:15.7]}
37... Nd8 {[%clk 0:00:08.5]} 38. Qa6 {[%clk 0:00:12.2]} 38... Nf7 {[%clk
0:00:08.4]} 39. Qb7 {[%clk 0:00:11.2]} 39... Nfxd6 {[%clk 0:00:06.1]} 40. cxd6
{[%clk 0:00:12.1]} 40... Nxd6 {[%clk 0:00:07]} 41. Qa6 {[%clk 0:00:11.7]} 41...
Re8 {[%clk 0:00:04.7]} 42. Rxa5 {[%clk 0:00:06.7]} 42... Qxg4+ {[%clk
0:00:04.7]} 43. Kh1 {[%clk 0:00:07.4]} 43... Qxh3 {[%clk 0:00:04.4]} 0-1

[Event "*** Titled Tuesday Blitz"]
[Site "Chess.com"]
[Date "2020.05.05"]
[Round "10"]
[White "vinniethepooh"]
[Black "RaunakSadhwani2005"]
[Result "1/2-1/2"]
[WhiteElo "2686"]
[BlackElo "2859"]
[TimeControl "180+1"]
[EndTime "11:59:51 PDT"]
[Termination "Game drawn by repetition"]

1. d4 {[%clk 0:03:00.9]} 1... f5 {[%clk 0:02:59.8]} 2. g3 {[%clk 0:03:00.7]}
2... Nf6 {[%clk 0:02:59.9]} 3. Bg2 {[%clk 0:03:01.1]} 3... g6 {[%clk 0:03:00.4]}
4. Nf3 {[%clk 0:03:01.6]} 4... Bg7 {[%clk 0:03:00.9]} 5. O-O {[%clk 0:03:02.2]}
5... O-O {[%clk 0:03:01.4]} 6. b3 {[%clk 0:03:02.8]} 6... b6 {[%clk 0:02:58.9]}
7. Ne5 {[%clk 0:02:56.5]} 7... Ne4 {[%clk 0:02:58.3]} 8. Nd2 {[%clk 0:02:56.9]}
8... Bb7 {[%clk 0:02:54.8]} 9. Nxe4 {[%clk 0:02:55.5]} 9... fxe4 {[%clk
0:02:54.2]} 10. Bb2 {[%clk 0:02:50.8]} 10... d6 {[%clk 0:02:44.3]} 11. Ng4
{[%clk 0:02:50.1]} 11... Nd7 {[%clk 0:02:41]} 12. c4 {[%clk 0:02:40.9]} 12...
Nf6 {[%clk 0:02:39.6]} 13. Ne3 {[%clk 0:02:38.7]} 13... e6 {[%clk 0:02:35.4]}
14. Rc1 {[%clk 0:02:18.5]} 14... c5 {[%clk 0:02:25.7]} 15. Qd2 {[%clk
0:02:09.7]} 15... Qe7 {[%clk 0:02:18.2]} 16. Rfd1 {[%clk 0:02:05.2]} 16... Rad8
{[%clk 0:02:18.5]} 17. h3 {[%clk 0:02:01.5]} 17... h5 {[%clk 0:02:11]} 18. h4
{[%clk 0:01:57.4]} 18... Bh6 {[%clk 0:02:07.7]} 19. Qc3 {[%clk 0:01:57]} 19...
Kh7 {[%clk 0:01:59.7]} 20. Bh3 {[%clk 0:01:14.2]} 20... Rf7 {[%clk 0:01:56.8]}
21. Ba1 {[%clk 0:01:10.4]} 21... Rdf8 {[%clk 0:01:53.6]} 22. Bb2 {[%clk
0:01:05.5]} 22... Bc8 {[%clk 0:01:36.1]} 23. dxc5 {[%clk 0:01:02.5]} 23... bxc5
{[%clk 0:01:35.8]} 24. Rc2 {[%clk 0:00:58.4]} 24... Ne8 {[%clk 0:01:29]} 25. Rf1
{[%clk 0:00:55.9]} 25... Ng7 {[%clk 0:01:13.8]} 26. Bg2 {[%clk 0:00:48.4]} 26...
Bb7 {[%clk 0:01:11.4]} 27. Rcc1 {[%clk 0:00:42.4]} 27... Nf5 {[%clk 0:01:10.6]}
28. Nxf5 {[%clk 0:00:40.3]} 28... gxf5 {[%clk 0:01:08.3]} 29. e3 {[%clk
0:00:38.1]} 29... Rg8 {[%clk 0:01:04.6]} 30. Kh2 {[%clk 0:00:33.8]} 30... e5
{[%clk 0:01:00.8]} 31. Qc2 {[%clk 0:00:31.9]} 31... Rg6 {[%clk 0:00:58.4]} 32.
Rcd1 {[%clk 0:00:26.7]} 32... Rfg7 {[%clk 0:00:47.5]} 33. Qe2 {[%clk 0:00:26.8]}
33... f4 {[%clk 0:00:47]} 34. exf4 {[%clk 0:00:23.2]} 34... Bxf4 {[%clk
0:00:39.4]} 35. Qxh5+ {[%clk 0:00:23.5]} 35... Kg8 {[%clk 0:00:34.2]} 36. Bc1
{[%clk 0:00:15.8]} 36... e3 {[%clk 0:00:24.2]} 37. Bxe3 {[%clk 0:00:13.6]} 37...
Bxg2 {[%clk 0:00:19.4]} 38. Kxg2 {[%clk 0:00:11.1]} 38... Bxe3 {[%clk
0:00:19.8]} 39. fxe3 {[%clk 0:00:12]} 39... Rxg3+ {[%clk 0:00:20.4]} 40. Kf2
{[%clk 0:00:10.6]} 40... Qf6+ {[%clk 0:00:14.1]} 41. Ke1 {[%clk 0:00:08.7]}
41... Qe6 {[%clk 0:00:07.2]} 42. Kf2 {[%clk 0:00:07.2]} 42... Qh3 {[%clk
0:00:06.9]} 43. Qe8+ {[%clk 0:00:01.4]} 43... Kh7 {[%clk 0:00:07.3]} 44. Qh5+
{[%clk 0:00:02]} 44... Kg8 {[%clk 0:00:08.2]} 45. Qe8+ {[%clk 0:00:02.5]} 45...
Kh7 {[%clk 0:00:09.1]} 46. Qh5+ {[%clk 0:00:03.1]} 46... Kg8 {[%clk 0:00:10]}
1/2-1/2

[Event "*** Titled Tuesday Blitz"]
[Site "Chess.com"]
[Date "2020.05.05"]
[Round "10"]
[White "chessuriel"]
[Black "MartinMatthiesen"]
[Result "0-1"]
[WhiteElo "2215"]
[BlackElo "2434"]
[TimeControl "180+1"]
[EndTime "11:59:51 PDT"]
[Termination "MartinMatthiesen won on time"]

1. e4 {[%clk 0:03:00.9]} 1... c5 {[%clk 0:02:58.9]} 2. Nf3 {[%clk 0:03:00.1]}
2... d6 {[%clk 0:02:58.5]} 3. d4 {[%clk 0:03:00]} 3... cxd4 {[%clk 0:02:57.4]}
4. Nxd4 {[%clk 0:03:00.9]} 4... Nf6 {[%clk 0:02:57]} 5. Nc3 {[%clk 0:03:01.3]}
5... a6 {[%clk 0:02:56.6]} 6. Bc4 {[%clk 0:03:01.2]} 6... e6 {[%clk 0:02:56]} 7.
Bb3 {[%clk 0:03:01.4]} 7... Nbd7 {[%clk 0:02:55.7]} 8. Bg5 {[%clk 0:03:00.2]}
8... Nc5 {[%clk 0:02:53.3]} 9. f4 {[%clk 0:03:00.3]} 9... Be7 {[%clk 0:02:51.8]}
10. Qf3 {[%clk 0:03:00]} 10... b5 {[%clk 0:02:37.5]} 11. O-O-O {[%clk
0:02:57.7]} 11... Bb7 {[%clk 0:02:36.8]} 12. Rhe1 {[%clk 0:02:55.8]} 12... b4
{[%clk 0:02:33.6]} 13. Nd5 {[%clk 0:02:14.9]} 13... exd5 {[%clk 0:02:21]} 14.
exd5 {[%clk 0:02:14.2]} 14... Nxb3+ {[%clk 0:02:01.6]} 15. Qxb3 {[%clk
0:01:56.3]} 15... Bxd5 {[%clk 0:01:56]} 16. Qh3 {[%clk 0:01:08.9]} 16... O-O
{[%clk 0:00:33.2]} 17. Nf5 {[%clk 0:00:54]} 17... Be6 {[%clk 0:00:29.6]} 18.
Nxe7+ {[%clk 0:00:53.7]} 18... Qxe7 {[%clk 0:00:29.5]} 19. f5 {[%clk 0:00:54.1]}
19... Rfe8 {[%clk 0:00:23.5]} 20. fxe6 {[%clk 0:00:53.7]} 20... fxe6 {[%clk
0:00:24.4]} 21. Re3 {[%clk 0:00:47.6]} 21... e5 {[%clk 0:00:20.5]} 22. Rf1
{[%clk 0:00:40.8]} 22... Rf8 {[%clk 0:00:20.3]} 23. Ref3 {[%clk 0:00:37.9]}
23... Rac8 {[%clk 0:00:19.8]} 24. Bxf6 {[%clk 0:00:35.1]} 24... gxf6 {[%clk
0:00:18.2]} 25. Rxf6 {[%clk 0:00:31.3]} 25... Rxc2+ {[%clk 0:00:18.2]} 26. Kxc2
{[%clk 0:00:30.3]} 26... Rxf6 {[%clk 0:00:18.5]} 27. Qc8+ {[%clk 0:00:23.8]}
27... Kg7 {[%clk 0:00:18.1]} 28. Qg4+ {[%clk 0:00:23.4]} 28... Rg6 {[%clk
0:00:18.1]} 29. Qe4 {[%clk 0:00:20.3]} 29... Qe6 {[%clk 0:00:17.5]} 30. Kb1
{[%clk 0:00:19.6]} 30... d5 {[%clk 0:00:16.9]} 31. Qxb4 {[%clk 0:00:18.5]} 31...
Rf6 {[%clk 0:00:16.8]} 32. Rc1 {[%clk 0:00:14.8]} 32... e4 {[%clk 0:00:16]} 33.
Rc7+ {[%clk 0:00:14.2]} 33... Rf7 {[%clk 0:00:16.1]} 34. Qd4+ {[%clk 0:00:13.7]}
34... Kg6 {[%clk 0:00:16]} 35. Rc3 {[%clk 0:00:11.6]} 35... Rf5 {[%clk
0:00:14.7]} 36. Rg3+ {[%clk 0:00:11]} 36... Rg5 {[%clk 0:00:15.1]} 37. Rxg5+
{[%clk 0:00:09.6]} 37... Kxg5 {[%clk 0:00:15.1]} 38. Qg7+ {[%clk 0:00:09.2]}
38... Qg6 {[%clk 0:00:15.3]} 39. Qe7+ {[%clk 0:00:09.2]} 39... Kf5 {[%clk
0:00:15]} 40. Qd7+ {[%clk 0:00:08.7]} 40... Qe6 {[%clk 0:00:14.8]} 41. Qxh7+
{[%clk 0:00:07.7]} 41... Kf4 {[%clk 0:00:15]} 42. Qh4+ {[%clk 0:00:07.4]} 42...
Ke3 {[%clk 0:00:15.1]} 43. Qg3+ {[%clk 0:00:07.1]} 43... Ke2 {[%clk 0:00:14.7]}
44. a3 {[%clk 0:00:04.9]} 44... Qf5 {[%clk 0:00:14.2]} 45. Qc3 {[%clk
0:00:04.6]} 45... Qf1+ {[%clk 0:00:13.2]} 46. Ka2 {[%clk 0:00:03.3]} 46... Qd1
{[%clk 0:00:13.8]} 47. Qe5 {[%clk 0:00:02.5]} 47... Qd3 {[%clk 0:00:13]} 48.
Qh5+ {[%clk 0:00:01.9]} 48... Kf2 {[%clk 0:00:13]} 49. Qh4+ {[%clk 0:00:01.1]}
49... Kf1 {[%clk 0:00:12.1]} 0-1

[Event "*** Titled Tuesday Blitz"]
[Site "Chess.com"]
[Date "2020.05.05"]
[Round "10"]
[White "reniite"]
[Black "Klavdia_Nik"]
[Result "1-0"]
[WhiteElo "1954"]
[BlackElo "1942"]
[TimeControl "180+1"]
[EndTime "11:59:51 PDT"]
[Termination "reniite won on time"]

1. e4 {[%clk 0:03:00.9]} 1... c5 {[%clk 0:02:54.7]} 2. Nf3 {[%clk 0:03:00.3]}
2... Nc6 {[%clk 0:02:55]} 3. d4 {[%clk 0:03:00.2]} 3... cxd4 {[%clk 0:02:55.5]}
4. Nxd4 {[%clk 0:03:01.1]} 4... Nf6 {[%clk 0:02:54.4]} 5. Nc3 {[%clk 0:03:00.6]}
5... e6 {[%clk 0:02:54.8]} 6. Ndb5 {[%clk 0:02:58.3]} 6... d6 {[%clk 0:02:52.3]}
7. Bf4 {[%clk 0:02:57.8]} 7... e5 {[%clk 0:02:52.5]} 8. Bg5 {[%clk 0:02:56.3]}
8... a6 {[%clk 0:02:48.8]} 9. Na3 {[%clk 0:02:55.2]} 9... Be6 {[%clk 0:02:41.8]}
10. Nd5 {[%clk 0:02:47.7]} 10... Bxd5 {[%clk 0:02:22.7]} 11. exd5 {[%clk
0:02:47.2]} 11... Nd4 {[%clk 0:02:19.7]} 12. c3 {[%clk 0:02:39.1]} 12... Nf5
{[%clk 0:02:12.7]} 13. Qa4+ {[%clk 0:02:15.1]} 13... Ke7 {[%clk 0:01:58.3]} 14.
Bd3 {[%clk 0:02:14.1]} 14... b5 {[%clk 0:01:48.9]} 15. Qc2 {[%clk 0:02:13.2]}
15... Nh6 {[%clk 0:01:45.7]} 16. O-O {[%clk 0:02:03.3]} 16... Ng8 {[%clk
0:01:44.3]} 17. f4 {[%clk 0:02:02.4]} 17... Qb6+ {[%clk 0:01:25.2]} 18. Kh1
{[%clk 0:02:01.7]} 18... h6 {[%clk 0:01:24.6]} 19. fxe5 {[%clk 0:01:58.1]} 19...
hxg5 {[%clk 0:01:20.6]} 20. exf6+ {[%clk 0:01:57.7]} 20... Nxf6 {[%clk 0:01:21]}
21. Rae1+ {[%clk 0:01:57.4]} 21... Kd8 {[%clk 0:01:17.4]} 22. Qd2 {[%clk
0:01:48.9]} 22... g4 {[%clk 0:01:11.5]} 23. Qg5 {[%clk 0:01:36]} 23... Rh6
{[%clk 0:00:45.5]} 24. Nc2 {[%clk 0:01:28.1]} 24... Qc5 {[%clk 0:00:43.4]} 25.
Ne3 {[%clk 0:01:24.1]} 25... Ra7 {[%clk 0:00:40.5]} 26. Nxg4 {[%clk 0:01:23.5]}
26... Rh5 {[%clk 0:00:34.7]} 27. Re8+ {[%clk 0:01:04.2]} 27... Kxe8 {[%clk
0:00:31.9]} 28. Nxf6+ {[%clk 0:01:04.5]} 28... gxf6 {[%clk 0:00:30.4]} 29. Qxh5
{[%clk 0:01:04.3]} 29... Re7 {[%clk 0:00:27.9]} 30. Qf3 {[%clk 0:00:52.2]} 30...
Re5 {[%clk 0:00:22.9]} 31. Qxf6 {[%clk 0:00:50.8]} 31... Qxd5 {[%clk 0:00:23.4]}
32. Bg6 {[%clk 0:00:38.2]} 32... Re7 {[%clk 0:00:17.6]} 33. Bb1 {[%clk 0:00:19]}
33... Qe6 {[%clk 0:00:15.5]} 34. Qxe6 {[%clk 0:00:18.2]} 34... Rxe6 {[%clk
0:00:13.9]} 35. Bd3 {[%clk 0:00:18.3]} 35... Bh6 {[%clk 0:00:13.2]} 36. h3
{[%clk 0:00:18.3]} 36... Re3 {[%clk 0:00:12.5]} 37. Rd1 {[%clk 0:00:17.7]} 37...
Ke7 {[%clk 0:00:11.9]} 38. Kg1 {[%clk 0:00:17.2]} 38... Re5 {[%clk 0:00:08.3]}
39. Kf2 {[%clk 0:00:16.8]} 39... Be3+ {[%clk 0:00:08.4]} 40. Kf3 {[%clk
0:00:17.1]} 40... Bc5 {[%clk 0:00:05.8]} 41. Be4 {[%clk 0:00:13.6]} 41... Bb6
{[%clk 0:00:05.1]} 42. Rd5 {[%clk 0:00:12.2]} 42... Re6 {[%clk 0:00:04.3]} 43.
g4 {[%clk 0:00:11.4]} 43... Bc7 {[%clk 0:00:02.3]} 44. g5 {[%clk 0:00:11.7]}
44... Bb6 {[%clk 0:00:02.4]} 45. h4 {[%clk 0:00:11.8]} 1-0

[Event "*** Titled Tuesday Blitz"]
[Site "Chess.com"]
[Date "2020.05.05"]
[Round "10"]
[White "Sesleria"]
[Black "Olga_Zhuravleva"]
[Result "0-1"]
[WhiteElo "2072"]
[BlackElo "2267"]
[TimeControl "180+1"]
[EndTime "11:59:53 PDT"]
[Termination "Olga_Zhuravleva won by checkmate"]

1. d4 {[%clk 0:02:59.1]} 1... g6 {[%clk 0:02:59.6]} 2. e4 {[%clk 0:02:58.3]}
2... Bg7 {[%clk 0:03:00.3]} 3. Nc3 {[%clk 0:02:56.8]} 3... d6 {[%clk 0:03:00.6]}
4. Nf3 {[%clk 0:02:54.5]} 4... Nc6 {[%clk 0:03:01.1]} 5. d5 {[%clk 0:02:53.8]}
5... Ne5 {[%clk 0:03:00]} 6. Be2 {[%clk 0:02:52.4]} 6... Nxf3+ {[%clk
0:02:54.2]} 7. Bxf3 {[%clk 0:02:51.5]} 7... e5 {[%clk 0:02:54.8]} 8. dxe6 {[%clk
0:02:45.9]} 8... Bxe6 {[%clk 0:02:50.5]} 9. O-O {[%clk 0:02:37.9]} 9... Ne7
{[%clk 0:02:41.3]} 10. Be3 {[%clk 0:02:12.3]} 10... O-O {[%clk 0:02:39.2]} 11.
Bd4 {[%clk 0:02:10.4]} 11... Nc6 {[%clk 0:02:37.8]} 12. Bxg7 {[%clk 0:02:09.5]}
12... Kxg7 {[%clk 0:02:38.7]} 13. b3 {[%clk 0:01:34.8]} 13... Qf6 {[%clk
0:02:37.6]} 14. Qd2 {[%clk 0:01:33.7]} 14... h6 {[%clk 0:02:30.7]} 15. Rad1
{[%clk 0:01:32.2]} 15... Rfe8 {[%clk 0:02:15]} 16. Nb5 {[%clk 0:01:12.5]} 16...
Qe7 {[%clk 0:02:10.1]} 17. c4 {[%clk 0:01:10]} 17... a6 {[%clk 0:01:57.6]} 18.
Nc3 {[%clk 0:01:07.2]} 18... Rad8 {[%clk 0:01:56.3]} 19. Rfe1 {[%clk 0:01:04.6]}
19... Qf6 {[%clk 0:01:52]} 20. Be2 {[%clk 0:00:45.7]} 20... Bc8 {[%clk
0:01:46.1]} 21. Bf1 {[%clk 0:00:44.2]} 21... Qh4 {[%clk 0:01:35.1]} 22. g3
{[%clk 0:00:37.3]} 22... Qg4 {[%clk 0:01:31.3]} 23. Bg2 {[%clk 0:00:36.5]} 23...
Ne5 {[%clk 0:01:25.9]} 24. Qe3 {[%clk 0:00:35.6]} 24... Qd7 {[%clk 0:01:21.6]}
25. h3 {[%clk 0:00:33.7]} 25... Qe7 {[%clk 0:01:07.3]} 26. Qd4 {[%clk
0:00:33.4]} 26... Kh7 {[%clk 0:01:05.6]} 27. f4 {[%clk 0:00:32.6]} 27... Nc6
{[%clk 0:01:05.5]} 28. Qd2 {[%clk 0:00:30.7]} 28... Be6 {[%clk 0:01:00.7]} 29.
Kh2 {[%clk 0:00:30.5]} 29... Qf8 {[%clk 0:00:54.3]} 30. Nd5 {[%clk 0:00:27.6]}
30... Bxd5 {[%clk 0:00:53.1]} 31. cxd5 {[%clk 0:00:27.9]} 31... Na7 {[%clk
0:00:49.8]} 32. Rc1 {[%clk 0:00:27.3]} 32... Rd7 {[%clk 0:00:45.7]} 33. a4
{[%clk 0:00:24.7]} 33... c5 {[%clk 0:00:35.7]} 34. dxc6 {[%clk 0:00:21]} 34...
Nxc6 {[%clk 0:00:36.2]} 35. b4 {[%clk 0:00:18.2]} 35... Red8 {[%clk 0:00:30.9]}
36. b5 {[%clk 0:00:17.4]} 36... axb5 {[%clk 0:00:29.7]} 37. axb5 {[%clk
0:00:18.3]} 37... Ne7 {[%clk 0:00:29.2]} 38. Qb4 {[%clk 0:00:14.9]} 38... Ng8
{[%clk 0:00:26.1]} 39. Red1 {[%clk 0:00:14.4]} 39... Nf6 {[%clk 0:00:25.1]} 40.
Qd4 {[%clk 0:00:13.6]} 40... Qe7 {[%clk 0:00:24.7]} 41. b6 {[%clk 0:00:12.9]}
41... h5 {[%clk 0:00:20.4]} 42. Rc3 {[%clk 0:00:12.1]} 42... Ne8 {[%clk
0:00:17.3]} 43. Rdc1 {[%clk 0:00:12.1]} 43... Ng7 {[%clk 0:00:17.4]} 44. Bf3
{[%clk 0:00:11.3]} 44... Ne6 {[%clk 0:00:17.8]} 45. Qd5 {[%clk 0:00:10.6]} 45...
Qf6 {[%clk 0:00:17.9]} 46. Kg2 {[%clk 0:00:09.8]} 46... Nc5 {[%clk 0:00:18.1]}
47. e5 {[%clk 0:00:07.8]} 47... dxe5 {[%clk 0:00:17.3]} 48. Qxc5 {[%clk
0:00:08]} 48... exf4 {[%clk 0:00:16.8]} 49. gxf4 {[%clk 0:00:08]} 49... Qxf4
{[%clk 0:00:15]} 50. R1c2 {[%clk 0:00:07.7]} 50... Rd2+ {[%clk 0:00:14.1]} 51.
Kf1 {[%clk 0:00:05.1]} 51... Rxc2 {[%clk 0:00:12.4]} 52. Rxc2 {[%clk 0:00:05.4]}
52... Qxf3+ {[%clk 0:00:12.9]} 53. Qf2 {[%clk 0:00:04.8]} 53... Rd1# {[%clk
0:00:13]} 0-1